fUSD/lending_fUSD_20250308
["ID","MTS","AMOUNT","RATE_DAILY","PERIOD"]
[355627774,1741408245939,-2355.21,8.493e-05,2]
[355627775,1741408245949,-500.0,8.493e-05,2]
[355627776,1741408245959,-1447.67,8.493e-05,2]
[355627777,1741408245969,-500.0,8.493e-05,2]
[355627778,1741408245979,-500.0,8.493e-05,2]
[355627779,1741408245989,-916.64,8.493e-05,2]
[355627780,1741408245999,-1202.22,8.493e-05,2]
[355627781,1741408246009,-500.0,8.493e-05,2]
[355627782,1741408246019,-500.0,8.493e-05,2]
[355627783,1741408246030,-2775.66,8.493e-05,2]
[355627784,1741408246040,-500.0,8.493e-05,2]
[355627785,1741408246049,-500.0,8.493e-05,2]
[355627786,1741408246059,-1641.17,8.493e-05,2]
[355627787,1741408246068,-500.0,8.493e-05,2]
[355627788,1741408246077,-500.0,8.493e-05,2]
[355627789,1741408246087,-1014.61,8.493e-05,2]
[355627790,1741408246098,-2514.38,8.493e-05,2]
[355627791,1741408246107,-500.0,8.493e-05,2]
[355627792,1741408246118,-1145.87,8.493e-05,2]
[355627793,1741408246127,-500.0,8.493e-05,2]
[355627794,1741408246137,-922.14,8.493e-05,2]
[355627795,1741408246147,-1344.29,8.493e-05,2]
[355627796,1741408246157,-1850.85,8.493e-05,2]
[355627798,1741408246167,-301.87034482,8.493e-05,2]
[355627800,1741408246178,-500.0,8.493e-05,2]
[355627802,1741408246188,-2649.46,8.493e-05,2]
[355627804,1741408246198,-1935.19,8.493e-05,2]
[355627805,1741408246207,-1125.5,8.493e-05,2]
[355627806,1741408246217,-500.0,8.493e-05,2]
[355627807,1741408246227,-500.0,8.493e-05,2]
[355627808,1741408246237,-500.0,8.493e-05,2]
[355627809,1741408246247,-959.69,8.493e-05,2]
[355627810,1741408246257,-458.97387989,8.493e-05,2]
[355627811,1741408246267,-500.0,8.493e-05,2]
[355627812,1741408246277,-500.0,8.493e-05,2]
[355627814,1741408246287,-529.30403986,8.493e-05,2]
[355627816,1741408246297,-1291.32,8.493e-05,2]
[355627818,1741408246307,-536.54,8.493e-05,2]
[355627819,1741408246317,-1440.28,8.493e-05,2]
[355627820,1741408246327,-500.0,8.493e-05,2]
[355627821,1741408246338,-500.0,8.493e-05,2]
[355627822,1741408246348,-500.0,8.493e-05,2]
[355627823,1741408246509,-2600.81,8.493e-05,2]
[355627824,1741408246519,-500.0,8.493e-05,2]
[355627825,1741408246529,-2832.18,8.493e-05,2]
[355627826,1741408246539,-724.22,8.493e-05,2]
[355627827,1741408246548,-500.0,8.493e-05,2]
[355627828,1741408246558,-1420.6,8.493e-05,2]
[355627829,1741408246567,-1084.01,8.493e-05,2]
[355627830,1741408246576,-500.0,8.493e-05,2]
[355627831,1741408246586,-500.0,8.493e-05,2]
[355627832,1741408246597,-674.72,8.493e-05,2]
[355627833,1741408246607,-500.0,8.493e-05,2]
[355627834,1741408246617,-819.56,8.493e-05,2]
[355627835,1741408246627,-2044.22,8.493e-05,2]
[355627836,1741408246637,-500.0,8.493e-05,2]
[355627837,1741408246648,-534.78,8.493e-05,2]
[355627838,1741408246658,-1685.95,8.493e-05,2]
[355627839,1741408246668,-500.0,8.493e-05,2]
[355627840,1741408246679,-1820.29,8.493e-05,2]
[355627841,1741408246694,-2621.37,8.493e-05,2]
[355627842,1741408246704,-500.0,8.493e-05,2]
[355627843,1741408246714,-500.0,8.493e-05,2]
[355627844,1741408246725,-1314.27,8.493e-05,2]
[355627845,1741408246735,-1377.54,8.493e-05,2]
[355627846,1741408246745,-2239.89,8.493e-05,2]
[355627847,1741408246755,-500.0,8.493e-05,2]
[355627848,1741408246765,-500.0,8.493e-05,2]
[355627849,1741408246775,-500.0,8.493e-05,2]
[355627850,1741408246784,-2362.81,8.493e-05,2]
[355627851,1741408246795,-500.0,8.493e-05,2]
[355627852,1741408246805,-500.0,8.493e-05,2]
[355627853,1741408246815,-1247.81,8.493e-05,2]
[355627854,1741408246824,-500.0,8.493e-05,2]
[355627855,1741408246834,-3074.19,8.493e-05,2]
[355627856,1741408246844,-500.0,8.493e-05,2]
[355627857,1741408246854,-500.0,8.493e-05,2]
[355627858,1741408246863,-500.0,8.493e-05,2]
[355627859,1741408246873,-689.38,8.493e-05,2]
[355627860,1741408246883,-1365.15,8.493e-05,2]
[355627861,1741408246893,-500.0,8.493e-05,2]
[355627862,1741408246902,-577.49,8.493e-05,2]
[355627863,1741408246912,-500.0,8.493e-05,2]
[355627864,1741408246921,-500.0,8.493e-05,2]
[355627866,1741408246930,-500.0,8.493e-05,2]
[355627868,1741408246940,-2386.95,8.493e-05,2]
[355627869,1741408246950,-1213.77,8.493e-05,2]
[355627870,1741408246960,-1294.92,8.493e-05,2]
[355627871,1741408246970,-2002.1,8.493e-05,2]
[355627872,1741408246979,-500.0,8.493e-05,2]
[355627873,1741408246989,-500.0,8.493e-05,2]
[355627874,1741408246998,-500.0,8.493e-05,2]
[355627875,1741408247008,-542.04572697,8.493e-05,2]
[355627876,1741408247017,-1860.1,8.493e-05,2]
[355627877,1741408247026,-1597.72,8.493e-05,2]
[355627878,1741408247035,-3871.33,8.493e-05,2]
[355627879,1741408247045,-500.0,8.493e-05,2]
[355627880,1741408247055,-1149.71,8.493e-05,2]
[355627881,1741408247065,-500.0,8.493e-05,2]
[355627882,1741408247074,-500.0,8.493e-05,2]
[355627883,1741408247084,-2296.22,8.493e-05,2]
[355627884,1741408247093,-510.92826425,8.493e-05,2]
[355627885,1741408247103,-500.0,8.493e-05,2]
[355627886,1741408247113,-258.21160416,8.493e-05,2]
[355627887,1741408247123,-1240.89,8.493e-05,2]
[355627888,1741408247133,-846.32,8.493e-05,2]
[355627889,1741408247142,-500.0,8.493e-05,2]
[355627890,1741408247151,-1530.83,8.493e-05,2]
[355627891,1741408247162,-1093.59,8.493e-05,2]
[355627892,1741408247171,-500.0,8.493e-05,2]
[355627893,1741408247181,-500.0,8.493e-05,2]
[355627894,1741408247191,-500.0,8.493e-05,2]
[355627895,1741408247201,-500.0,8.493e-05,2]
[355627896,1741408247211,-569.14807152,8.493e-05,2]
[355627897,1741408247220,-500.0,8.493e-05,2]
[355627898,1741408247229,-500.0,8.493e-05,2]
[355627899,1741408247239,-500.0,8.493e-05,2]
[355627900,1741408247248,-5000.0,8.493e-05,2]
[355627901,1741408247257,-605.34,8.493e-05,2]
[355627902,1741408247266,-1386.99,8.493e-05,2]
[355627903,1741408247275,-500.0,8.493e-05,2]
[355627904,1741408247286,-500.0,8.493e-05,2]
[355627905,1741408247296,-3077.32,8.493e-05,2]
[355627906,1741408247307,-4397.17,8.493e-05,2]
[355627907,1741408247317,-563.86254297,8.493e-05,2]
[355627908,1741408247326,-1345.34,8.493e-05,2]
[355627909,1741408247336,-1609.38,8.493e-05,2]
[355627910,1741408247345,-547.89779605,8.493e-05,2]
[355627911,1741408247354,-500.0,8.493e-05,2]
[355627912,1741408247363,-887.78,8.493e-05,2]
[355627913,1741408247373,-500.0,8.493e-05,2]
[355627914,1741408247382,-957.52,8.493e-05,2]
[355627915,1741408247391,-1821.72,8.493e-05,2]
[355627916,1741408247401,-500.0,8.493e-05,2]
[355627917,1741408247410,-522.06,8.493e-05,2]
[355627918,1741408247419,-1137.63,8.493e-05,2]
[355627919,1741408247429,-770.97,8.493e-05,2]
[355627920,1741408247438,-1308.39,8.493e-05,2]
[355627921,1741408247448,-509.54,8.493e-05,2]
[355627922,1741408247457,-1803.5,8.493e-05,2]
[355627923,1741408247466,-500.0,8.493e-05,2]
[355627924,1741408247475,-2453.18,8.493e-05,2]
[355627925,1741408247485,-500.0,8.493e-05,2]
[355627926,1741408247495,-1097.81,8.493e-05,2]
[355627927,1741408247504,-1029.55,8.493e-05,2]
[355627928,1741408247514,-1643.88,8.493e-05,2]
[355627929,1741408247524,-1113.02,8.493e-05,2]
[355627930,1741408247534,-500.0,8.493e-05,2]
[355627931,1741408247543,-537.4453895,8.493e-05,2]
[355627932,1741408247553,-500.0,8.493e-05,2]
[355627933,1741408247562,-1579.61,8.493e-05,2]
[355627934,1741408247572,-2075.66,8.493e-05,2]
[355627935,1741408247581,-500.0,8.493e-05,2]
[355627936,1741408247591,-2612.79,8.493e-05,2]
[355627937,1741408247600,-500.0,8.493e-05,2]
[355627938,1741408247609,-500.0,8.493e-05,2]
[355627939,1741408247619,-2062.4,8.493e-05,2]
[355627940,1741408247629,-1945.16,8.493e-05,2]
[355627941,1741408247639,-215.66133069,8.493e-05,2]
[355627942,1741408247649,-500.0,8.493e-05,2]
[355627943,1741408247659,-1208.82,8.493e-05,2]
[355627944,1741408247669,-782.62,8.493e-05,2]
[355627945,1741408247679,-1235.91,8.493e-05,2]
[355627946,1741408247692,-1612.68,8.493e-05,2]
[355627947,1741408247701,-3435.82,8.493e-05,2]
[355627948,1741408247711,-3074.79,8.493e-05,2]
[355627949,1741408247720,-500.0,8.493e-05,2]
[355627950,1741408247731,-500.0,8.493e-05,2]
[355627951,1741408247741,-500.0,8.493e-05,2]
[355627952,1741408247750,-858.96,8.493e-05,2]
[355627953,1741408247761,-1034.61,8.493e-05,2]
[355627954,1741408247770,-611.1,8.493e-05,2]
[355627955,1741408247779,-2000.37,8.493e-05,2]
[355627956,1741408247789,-500.0,8.493e-05,2]
[355627957,1741408247799,-1552.37,8.493e-05,2]
[355627958,1741408247809,-561.19,8.493e-05,2]
[355627959,1741408247819,-2099.59,8.493e-05,2]
[355627960,1741408247828,-3732.01,8.493e-05,2]
[355627961,1741408247838,-500.0,8.493e-05,2]
[355627962,1741408247847,-3141.53547102,8.493e-05,2]
[355627963,1741408248411,-200.30452898,8.493e-05,2]
[355627964,1741408248421,-500.0,8.493e-05,2]
[355627965,1741408248432,-2757.02,8.493e-05,2]
[355627966,1741408248442,-523.07004287,8.493e-05,2]
[355627967,1741408248452,-1350.48609713,8.493e-05,2]
[355627968,1741408250622,-500.0,8.219e-05,2]
[355627969,1741408250632,-38.21000001,8.493e-05,2]
[355627970,1741408250650,-432.065,8.493e-05,2]
[355627971,1741408250875,-430.2799951,8.493e-05,2]
[355627972,1741408253103,-4027.3,8.219e-05,2]
[355627973,1741408253113,-500.0,8.219e-05,2]
[355627974,1741408253122,-509.79010919,8.219e-05,2]
[355627975,1741408253132,-773.58890776,8.493e-05,2]
[355627976,1741408253142,-500.0,8.493e-05,2]
[355627977,1741408253152,-500.0,8.493e-05,2]
[355627978,1741408253161,-1076.53,8.493e-05,2]
[355627979,1741408253171,-500.0,8.493e-05,2]
[355627980,1741408253181,-121.13882006,8.493e-05,2]
[355627981,1741408253211,-3025.74117994,8.493e-05,2]
[355627982,1741408253220,-500.0,8.493e-05,2]
[355627983,1741408253418,-0.57770005,8.493e-05,2]
[355628013,1741408710158,723.734,8.055e-05,2]
[355628014,1741408710213,170.68249828,8.055e-05,2]
[355628020,1741408814005,500.0,8.049e-05,2]
[355628021,1741408822928,1533.81364711,8e-05,2]
[355628023,1741408851417,177.62,7.955e-05,2]
[355628032,1741409173968,155.19,7.932e-05,2]
[355628042,1741409309571,10066.01756035,0.0002,120]
[355628055,1741409409358,-155.19,8.17e-05,2]
[355628056,1741409409393,-3551.04865783,8.177e-05,2]
[355628057,1741409409434,-492.38017051,8.177e-05,2]
[355628058,1741409428746,23355.75,7.894e-05,2]
[355628059,1741409431641,-650.63117166,8.177e-05,2]
[355628060,1741409431651,-150.0,8.192e-05,2]
[355628061,1741409431660,-501.57357659,8.193e-05,2]
[355628062,1741409431670,-161.15394677,8.193e-05,2]
[355628063,1741409431679,-300.0,8.217e-05,2]
[355628064,1741409431689,-500.0,8.218e-05,2]
[355628065,1741409431699,-500.0,8.218e-05,2]
[355628066,1741409431709,-500.0,8.218e-05,2]
[355628067,1741409431719,-642.55673266,8.218e-05,2]
[355628068,1741409431728,-1358.61740743,8.218e-05,2]
[355628069,1741409431738,-199.58803376,8.218e-05,2]
[355628070,1741409431748,-299.53898363,8.218e-05,2]
[355628071,1741409431757,-1236.92023208,8.218e-05,2]
[355628072,1741409431773,-248763.07976792,8.218e-05,2]
[355628073,1741409431792,-503.1123706,8.219e-05,2]
[355628074,1741409431803,-503.23185321,8.219e-05,2]
[355628075,1741409431812,-508.38694028,8.219e-05,2]
[355628076,1741409431822,-509.27135759,8.219e-05,2]
[355628077,1741409431832,-502.84469719,8.219e-05,2]
[355628078,1741409431842,-508.51636729,8.219e-05,2]
[355628079,1741409431852,-303.24522614,8.219e-05,2]
[355628080,1741409431862,-511.58871836,8.219e-05,2]
[355628081,1741409431872,-492.52700993,8.219e-05,2]
[355628082,1741409431881,-503.36242158,8.219e-05,2]
[355628083,1741409431891,-505.75872498,8.219e-05,2]
[355628084,1741409431901,-500.0,8.219e-05,2]
[355628085,1741409431910,-503.00373661,8.219e-05,2]
[355628086,1741409431920,-500.0,8.219e-05,2]
[355628087,1741409431930,-503.59206691,8.219e-05,2]
[355628088,1741409431940,-501.3215572,8.219e-05,2]
[355628089,1741409431950,-500.0,8.219e-05,2]
[355628090,1741409431959,-507.86867414,8.219e-05,2]
[355628091,1741409431969,-504.01076027,8.219e-05,2]
[355628092,1741409431979,-503.67001786,8.219e-05,2]
[355628093,1741409431988,-502.40599246,8.219e-05,2]
[355628094,1741409431999,-500.0,8.219e-05,2]
[355628095,1741409432009,-502.40381048,8.219e-05,2]
[355628096,1741409432019,-506.44182733,8.219e-05,2]
[355628097,1741409432029,-510.13138566,8.219e-05,2]
[355628098,1741409432039,-578.04159951,8.219e-05,2]
[355628099,1741409432049,-503.67299688,8.219e-05,2]
[355628100,1741409432059,-500.0,8.219e-05,2]
[355628101,1741409432074,-508.39159751,8.219e-05,2]
[355628102,1741409432083,-504.08860069,8.219e-05,2]
[355628103,1741409432094,-505.17585621,8.219e-05,2]
[355628104,1741409432105,-500.98589305,8.219e-05,2]
[355628105,1741409432115,-502.27656383,8.219e-05,2]
[355628106,1741409432125,-501.58185629,8.219e-05,2]
[355628107,1741409432135,-503.45290447,8.219e-05,2]
[355628108,1741409432148,-504.27892874,8.219e-05,2]
[355628109,1741409432159,-500.4124286,8.219e-05,2]
[355628110,1741409432169,-503.08903108,8.219e-05,2]
[355628111,1741409432179,-154.734663,8.219e-05,2]
[355628112,1741409432192,-500.0,8.219e-05,2]
[355628113,1741409432203,-167.449636,8.219e-05,2]
[355628114,1741409432214,-500.0,8.219e-05,2]
[355628115,1741409432225,-737.94,8.219e-05,2]
[355628116,1741409432234,-867.07,8.219e-05,2]
[355628117,1741409432244,-500.0,8.219e-05,2]
[355628118,1741409432254,-500.0,8.219e-05,2]
[355628119,1741409432264,-500.0,8.219e-05,2]
[355628120,1741409432274,-500.0,8.219e-05,2]
[355628121,1741409432284,-500.0,8.219e-05,2]
[355628122,1741409432294,-500.0,8.219e-05,2]
[355628123,1741409432304,-510.41124826,8.219e-05,2]
[355628124,1741409432313,-515.84182446,8.219e-05,2]
[355628125,1741409432323,-500.0,8.219e-05,2]
[355628126,1741409432332,-500.0,8.219e-05,2]
[355628127,1741409432342,-500.0,8.219e-05,2]
[355628128,1741409432352,-500.0,8.219e-05,2]
[355628129,1741409432362,-510.37389588,8.219e-05,2]
[355628130,1741409432372,-522.45227206,8.219e-05,2]
[355628131,1741409432382,-572.6689206,8.219e-05,2]
[355628132,1741409432393,-500.0,8.219e-05,2]
[355628133,1741409432402,-500.0,8.219e-05,2]
[355628134,1741409432412,-500.0,8.219e-05,2]
[355628135,1741409432421,-500.0,8.219e-05,2]
[355628136,1741409432431,-500.0,8.219e-05,2]
[355628137,1741409432440,-506.40172736,8.219e-05,2]
[355628138,1741409432449,-500.0,8.219e-05,2]
[355628139,1741409432459,-500.0,8.219e-05,2]
[355628140,1741409432470,-500.0,8.219e-05,2]
[355628141,1741409432480,-500.0,8.219e-05,2]
[355628142,1741409432490,-500.0,8.219e-05,2]
[355628143,1741409432500,-513.81241487,8.219e-05,2]
[355628144,1741409432510,-1324.28,8.219e-05,2]
[355628145,1741409432520,-500.0,8.219e-05,2]
[355628146,1741409432530,-500.0,8.219e-05,2]
[355628147,1741409432541,-500.0,8.219e-05,2]
[355628148,1741409432551,-1141.12,8.219e-05,2]
[355628149,1741409432562,-519.18196863,8.219e-05,2]
[355628150,1741409432572,-500.0,8.219e-05,2]
[355628151,1741409432582,-500.0,8.219e-05,2]
[355628152,1741409432593,-509.75717657,8.219e-05,2]
[355628153,1741409432603,-500.0,8.219e-05,2]
[355628154,1741409432614,-500.0,8.219e-05,2]
[355628155,1741409432623,-507.93796038,8.219e-05,2]
[355628156,1741409432633,-1280.56,8.219e-05,2]
[355628157,1741409432642,-500.0,8.219e-05,2]
[355628158,1741409432653,-500.0,8.219e-05,2]
[355628159,1741409432663,-500.0,8.219e-05,2]
[355628160,1741409432673,-510.76376237,8.219e-05,2]
[355628161,1741409432684,-512.49,8.219e-05,2]
[355628162,1741409432694,-500.0,8.219e-05,2]
[355628163,1741409432704,-500.0,8.219e-05,2]
[355628164,1741409432714,-534.6143567,8.219e-05,2]
[355628165,1741409432723,-500.0,8.219e-05,2]
[355628166,1741409432734,-868.86,8.219e-05,2]
[355628167,1741409432743,-500.0,8.219e-05,2]
[355628168,1741409432753,-500.0,8.219e-05,2]
[355628169,1741409432763,-871.59,8.219e-05,2]
[355628170,1741409432772,-1066.19,8.219e-05,2]
[355628171,1741409432782,-500.0,8.219e-05,2]
[355628172,1741409432792,-500.0,8.219e-05,2]
[355628173,1741409432802,-500.0,8.219e-05,2]
[355628174,1741409432811,-506.16776717,8.219e-05,2]
[355628175,1741409432821,-504.49866225,8.219e-05,2]
[355628176,1741409432831,-511.25791479,8.219e-05,2]
[355628177,1741409432840,-500.0,8.219e-05,2]
[355628178,1741409432850,-500.0,8.219e-05,2]
[355628179,1741409432859,-500.0,8.219e-05,2]
[355628180,1741409432869,-507.58146141,8.219e-05,2]
[355628181,1741409432879,-500.0,8.219e-05,2]
[355628182,1741409432889,-506.85084724,8.219e-05,2]
[355628183,1741409432898,-500.0,8.219e-05,2]
[355628184,1741409432908,-500.0,8.219e-05,2]
[355628185,1741409432918,-500.0,8.219e-05,2]
[355628186,1741409432927,-548.9046239,8.219e-05,2]
[355628187,1741409432937,-500.0,8.219e-05,2]
[355628188,1741409432946,-500.0,8.219e-05,2]
[355628189,1741409432956,-500.0,8.219e-05,2]
[355628190,1741409432965,-507.91805559,8.219e-05,2]
[355628191,1741409432975,-506.95354197,8.219e-05,2]
[355628192,1741409432985,-500.0,8.219e-05,2]
[355628193,1741409432995,-500.0,8.219e-05,2]
[355628194,1741409433004,-506.84934792,8.219e-05,2]
[355628195,1741409433014,-500.0,8.219e-05,2]
[355628196,1741409433023,-595.43034194,8.219e-05,2]
[355628197,1741409433034,-500.0,8.219e-05,2]
[355628198,1741409433044,-510.52290676,8.219e-05,2]
[355628199,1741409433054,-527.63823683,8.219e-05,2]
[355628200,1741409433067,-1014.51,8.219e-05,2]
[355628201,1741409433077,-1050.38,8.219e-05,2]
[355628202,1741409433086,-1002.54,8.219e-05,2]
[355628203,1741409433097,-511.88044527,8.219e-05,2]
[355628204,1741409433108,-509.27021669,8.219e-05,2]
[355628205,1741409433117,-507.63417564,8.219e-05,2]
[355628206,1741409433128,-514.37383652,8.219e-05,2]
[355628207,1741409433137,-506.61052212,8.219e-05,2]
[355628208,1741409433149,-500.0,8.219e-05,2]
[355628209,1741409433385,-500.0,8.219e-05,2]
[355628210,1741409433396,-506.36404917,8.219e-05,2]
[355628211,1741409433406,-1320.26,8.219e-05,2]
[355628212,1741409433417,-500.0,8.219e-05,2]
[355628213,1741409433427,-513.63718568,8.219e-05,2]
[355628214,1741409433438,-1323.05,8.219e-05,2]
[355628215,1741409433448,-950.9,8.219e-05,2]
[355628216,1741409433458,-1283.58,8.219e-05,2]
[355628217,1741409433468,-500.0,8.219e-05,2]
[355628218,1741409433478,-502.39835252,8.219e-05,2]
[355628219,1741409433488,-500.0,8.219e-05,2]
[355628220,1741409433497,-500.0,8.219e-05,2]
[355628221,1741409433507,-500.0,8.219e-05,2]
[355628222,1741409433517,-503.62735455,8.219e-05,2]
[355628223,1741409433526,-500.0,8.219e-05,2]
[355628224,1741409433536,-500.0,8.219e-05,2]
[355628225,1741409433545,-500.0,8.219e-05,2]
[355628226,1741409433555,-500.0,8.219e-05,2]
[355628227,1741409433565,-500.0,8.219e-05,2]
[355628228,1741409433574,-550.2,8.219e-05,2]
[355628229,1741409433583,-1133.46,8.219e-05,2]
[355628230,1741409433593,-500.0,8.219e-05,2]
[355628231,1741409433603,-1123.78,8.219e-05,2]
[355628232,1741409433613,-512.68528796,8.219e-05,2]
[355628233,1741409433623,-500.0,8.219e-05,2]
[355628234,1741409433633,-508.0938299,8.219e-05,2]
[355628235,1741409433643,-500.0,8.219e-05,2]
[355628236,1741409433652,-500.0,8.219e-05,2]
[355628237,1741409433662,-1636.97,8.219e-05,2]
[355628238,1741409433672,-500.0,8.219e-05,2]
[355628239,1741409433682,-500.0,8.219e-05,2]
[355628240,1741409433691,-500.0,8.219e-05,2]
[355628241,1741409433701,-501.72145504,8.219e-05,2]
[355628242,1741409433710,-775.8,8.219e-05,2]
[355628243,1741409433720,-500.0,8.219e-05,2]
[355628244,1741409433729,-500.0,8.219e-05,2]
[355628245,1741409433739,-1148.84,8.219e-05,2]
[355628246,1741409433748,-509.2225828,8.219e-05,2]
[355628247,1741409433758,-1352.26,8.219e-05,2]
[355628248,1741409433767,-500.0,8.219e-05,2]
[355628249,1741409433777,-500.0,8.219e-05,2]
[355628250,1741409433787,-554.89,8.219e-05,2]
[355628251,1741409433796,-500.0,8.219e-05,2]
[355628252,1741409433806,-341.84257773,8.219e-05,2]
[355628253,1741409433815,-509.95179034,8.219e-05,2]
[355628254,1741409433826,-502.79555015,8.219e-05,2]
[355628255,1741409433836,-500.0,8.219e-05,2]
[355628256,1741409433845,-500.0,8.219e-05,2]
[355628257,1741409433855,-500.0,8.219e-05,2]
[355628258,1741409433865,-1272.22,8.219e-05,2]
[355628259,1741409433874,-500.0,8.219e-05,2]
[355628260,1741409433884,-509.04660891,8.219e-05,2]
[355628261,1741409433893,-500.0,8.219e-05,2]
[355628262,1741409433902,-500.0,8.219e-05,2]
[355628263,1741409433913,-500.0,8.219e-05,2]
[355628264,1741409433923,-500.0,8.219e-05,2]
[355628265,1741409433932,-1674.04,8.219e-05,2]
[355628266,1741409433943,-594.98517179,8.219e-05,2]
[355628267,1741409433953,-1320.51630174,8.219e-05,2]
[355628268,1741409433963,-813.8,8.219e-05,2]
[355628269,1741409433973,-1271.4,8.219e-05,2]
[355628270,1741409433983,-972.17,8.219e-05,2]
[355628271,1741409433992,-706.72,8.219e-05,2]
[355628272,1741409434002,-500.0,8.219e-05,2]
[355628273,1741409434011,-500.0,8.219e-05,2]
[355628274,1741409434021,-500.0,8.219e-05,2]
[355628275,1741409434031,-500.0,8.219e-05,2]
[355628276,1741409434040,-943.75,8.219e-05,2]
[355628277,1741409434050,-1499.12,8.219e-05,2]
[355628278,1741409434060,-503.35431423,8.219e-05,2]
[355628279,1741409434077,-500.0,8.219e-05,2]
[355628280,1741409434086,-500.0,8.219e-05,2]
[355628281,1741409434096,-500.0,8.219e-05,2]
[355628282,1741409434107,-500.0,8.219e-05,2]
[355628283,1741409434116,-500.0,8.219e-05,2]
[355628284,1741409434126,-808.22,8.219e-05,2]
[355628285,1741409434135,-500.0,8.219e-05,2]
[355628286,1741409434146,-504.94531514,8.219e-05,2]
[355628287,1741409434156,-500.0,8.219e-05,2]
[355628288,1741409434165,-525.16569172,8.219e-05,2]
[355628289,1741409434175,-508.99578008,8.219e-05,2]
[355628290,1741409434186,-500.0,8.219e-05,2]
[355628291,1741409434195,-505.03546465,8.219e-05,2]
[355628292,1741409434205,-500.0,8.219e-05,2]
[355628293,1741409434215,-500.0,8.219e-05,2]
[355628294,1741409434225,-503.76300408,8.219e-05,2]
[355628295,1741409434234,-1430.16,8.219e-05,2]
[355628296,1741409434244,-500.0,8.219e-05,2]
[355628297,1741409434253,-279.04106881,8.219e-05,2]
[355628298,1741409434263,-1531.16,8.219e-05,2]
[355628299,1741409434272,-500.0,8.219e-05,2]
[355628300,1741409434281,-1626.26,8.219e-05,2]
[355628301,1741409434292,-509.89651501,8.219e-05,2]
[355628302,1741409434301,-500.0,8.219e-05,2]
[355628303,1741409434311,-501.71081995,8.219e-05,2]
[355628304,1741409434321,-503.93482147,8.219e-05,2]
[355628305,1741409434330,-500.0,8.219e-05,2]
[355628306,1741409434340,-501.71166045,8.219e-05,2]
[355628307,1741409434349,-1277.15,8.219e-05,2]
[355628308,1741409434359,-480.22159492,8.219e-05,2]
[355628309,1741409434369,-504.49506956,8.219e-05,2]
[355628310,1741409434379,-1108.52,8.219e-05,2]
[355628311,1741409434388,-560.18,8.219e-05,2]
[355628312,1741409434400,-500.0,8.219e-05,2]
[355628313,1741409434410,-506.62830078,8.219e-05,2]
[355628314,1741409434421,-500.0,8.219e-05,2]
[355628315,1741409434431,-504.17877027,8.219e-05,2]
[355628316,1741409434441,-1811.33,8.219e-05,2]
[355628317,1741409434450,-971.83,8.219e-05,2]
[355628318,1741409434459,-507.26607592,8.219e-05,2]
[355628319,1741409434469,-1625.66,8.219e-05,2]
[355628320,1741409434478,-500.0,8.219e-05,2]
[355628321,1741409434487,-269.05652491,8.219e-05,2]
[355628322,1741409434497,-1441.17,8.219e-05,2]
[355628323,1741409434506,-969.93,8.219e-05,2]
[355628324,1741409434516,-500.0,8.219e-05,2]
[355628325,1741409434525,-500.0,8.219e-05,2]
[355628326,1741409434535,-537.61,8.219e-05,2]
[355628327,1741409434545,-500.0,8.219e-05,2]
[355628328,1741409434554,-515.5947339,8.219e-05,2]
[355628329,1741409434568,-535.26,8.219e-05,2]
[355628330,1741409434578,-677.38,8.219e-05,2]
[355628331,1741409434587,-896.34,8.219e-05,2]
[355628332,1741409434597,-503.18889266,8.219e-05,2]
[355628333,1741409434607,-2852.67,8.219e-05,2]
[355628334,1741409434617,-500.0,8.219e-05,2]
[355628335,1741409434627,-504.41831863,8.219e-05,2]
[355628336,1741409434636,-500.0,8.219e-05,2]
[355628337,1741409434646,-500.0,8.219e-05,2]
[355628338,1741409434656,-500.0,8.219e-05,2]
[355628339,1741409434665,-500.0,8.219e-05,2]
[355628340,1741409434675,-853.03,8.219e-05,2]
[355628341,1741409434685,-1425.31,8.219e-05,2]
[355628342,1741409434694,-1741.49,8.219e-05,2]
[355628343,1741409434704,-2437.24,8.219e-05,2]
[355628344,1741409434714,-500.0,8.219e-05,2]
[355628345,1741409434723,-503.38119738,8.219e-05,2]
[355628346,1741409434733,-481.36170846,8.219e-05,2]